[Event "FRA-chTW Top 12 2019"]
[Site "Vandoeuvre"]
[Date "2019.05.03"]
[Round "3.7"]
[White "Hamelin, Isabelle"]
[Black "Moingt, Anne"]
[Result "0-1"]
[ECO "A29"]
[WhiteElo "1609"]
[BlackElo "2042"]
[Annotator "NA"]
[PlyCount "102"]
[EventDate "2019.05.02"]
[EventType "team-tourn"]
[EventCountry "FRA"]
[SourceTitle "playchess.com"]
[Source "ChessBase"]
[SourceQuality "1"]
[TimeControl "40/5400+30:1800+30"]

1. c4 {[%emt 0:00:00]} e5 {[%emt 0:00:00]} 2. Nc3 {[%emt 0:00:00]} Nf6 {[%emt 0:00:00]} 3. g3 {[%emt 0:00:00]} d5 {[%emt 0:00:47]} 4. cxd5 {[%emt 0:00:00]} Nxd5 {[%emt 0:00:07]} 5. Bg2 {[%emt 0:00:06]} Nb6 {[%emt 0:00:11]} 6. Nf3 {[%emt 0:00:34]} Nc6 {[%emt 0:00:10]} 7. O-O {[%emt 0:00:18]} Be7 {[%emt 0:00:19]} 8. d3 {[%emt 0:00:32]} O-O {[%emt 0:00:27]} 9. a3 {[%emt 0:00:24]} Re8 {[%emt 0:04:04]} 10. b4 {[%emt 0:01:46]} a5 {[%emt 0:02:34]} 11. b5 {[%emt 0:00:40]} Nd4 {[%emt 0:00:08]} 12. Bb2 {[%emt 0:01:43]} Bf8 {[%emt 0:01:38]} 13. Re1 {[%emt 0:04:53]} a4 {[%emt 0:04:55]} 14. Nxd4 {[%emt 0:03:04]} exd4 {[%emt 0:01:12]} 15. Ne4 {[%emt 0:00:41]} Ra5 {[%emt 0:09:05]} 16. Rc1 {[%emt 0:04:59]} Rxb5 {[%emt 0:04:20]} 17. Qc2 {[%emt 0:01:55]} c6 {[%emt 0:04:42]} 18. Nd2 {[%emt 0:05:50]} Be6 {[%emt 0:09:29]} 19. Nc4 {[%emt 0:04:25]} Rc5 {[%emt 0:09:03]} 20. Qd1 {[%emt 0:03:22]} Nxc4 {[%emt 0:03:23]} 21. dxc4 {[%emt 0:00:11]} Rxc4 {[%emt 0:00:35]} 22. Rxc4 {[%emt 0:00:18]} Bxc4 {[%emt 0:00:04]} 23. Qxa4 {[%emt 0:00:30]} b5 {[%emt 0:02:21]} 24. Qd1 {[%emt 0:00:19]} c5 {[%emt 0:00:21]} 25. Bf3 {[%emt 0:05:22]} Qa5 {[%emt 0:06:04]} 26. Kg2 {[%emt 0:07:33]} Qa4 {[%emt 0:06:32]} 27. Qxa4 {[%emt 0:02:24]} bxa4 {[%emt 0:00:03]} 28. Bc6 {[%emt 0:00:46]} Rb8 {[%emt 0:00:17]} 29. Bc1 {[%emt 0:02:01]} Bb3 {[%emt 0:01:14]} 30. e4 {[%emt 0:02:35]} c4 {[%emt 0:01:14]} 31. e5 {[%emt 0:00:34]} c3 {[%emt 0:00:40]} 32. Be4 {[%emt 0:01:25]} Bc5 {[%emt 0:01:42]} 33. Bd3 {[%emt 0:00:19]} Bd5+ {[%emt 0:00:24]} 34. Kh3 {[%emt 0:01:50]} Kf8 {[%emt 0:00:21]} 35. f4 {[%emt 0:00:05]} Ba2 {[%emt 0:05:21]} 36. e6 {[%emt 0:06:09]} Bxe6+ {[%emt 0:01:52]} 37. f5 {[%emt 0:00:12]} Ba2 {[%emt 0:00:40]} 38. f6 {[%emt 0:00:44]} Rb6 {[%emt 0:02:16]} 39. Re5 {[%emt 0:02:08]} Bd6 {[%emt 0:02:37]} 40. fxg7+ {[%emt 0:01:49]} Kxg7 {[%emt 0:00:20]} 41. Rh5 {[%emt 0:30:38]} Bb1 {[%emt 0:33:09]} 42. Rg5+ {[%emt 0:02:54]} Kf6 {[%emt 0:00:51]} 43. Rf5+ {[%emt 0:03:04]} Ke6 {[%emt 0:00:10]} 44. Rf3 {[%emt 0:01:56]} Bxd3 {[%emt 0:00:23]} 45. Rxd3 {[%emt 0:00:07]} Rb1 {[%emt 0:00:58]} 46. Bg5 {[%emt 0:02:20]} f6 {[%emt 0:00:11]} 47. Bh6 {[%emt 0:00:29]} Kd5 {[%emt 0:00:10]} 48. Rf3 {[%emt 0:01:07]} Be5 {[%emt 0:00:09]} 49. Bf8 {[%emt 0:00:26]} Ke4 {[%emt 0:00:20]} 50. Rf2 {[%emt 0:01:05]} d3 {[%emt 0:00:08]} 51. Bc5 {[%emt 0:00:14]} c2 {[%emt 0:00:18]} 0-1

[Event "FRA-chTW Top 12 2019"]
[Site "Vandoeuvre"]
[Date "2019.05.03"]
[Round "3.8"]
[White "Choisy, Mathilde"]
[Black "Bonvalot, Isabelle"]
[Result "1-0"]
[ECO "B15"]
[WhiteElo "2113"]
[BlackElo "1936"]
[Annotator "NA"]
[PlyCount "69"]
[EventDate "2019.05.02"]
[EventType "team-tourn"]
[EventCountry "FRA"]
[SourceTitle "playchess.com"]
[Source "ChessBase"]
[SourceQuality "1"]
[TimeControl "40/5400+30:1800+30"]

1. e4 {[%emt 0:00:00]} g6 {[%emt 0:00:00]} 2. d4 {[%emt 0:00:00]} Bg7 {[%emt 0:00:00]} 3. Nc3 {[%emt 0:00:00]} c6 {[%emt 0:00:00]} 4. Nf3 {[%emt 0:00:17]} d5 {[%emt 0:00:06]} 5. h3 {[%emt 0:00:25]} f6 {[%emt 0:01:12]} 6. Bd3 {[%emt 0:08:19]} Nh6 {[%emt 0:00:25]} 7. O-O {[%emt 0:00:59]} Nf7 {[%emt 0:00:10]} 8. Re1 {[%emt 0:04:27]} O-O {[%emt 0:00:07]} 9. Bf1 {[%emt 0:02:36]} h6 {[%emt 0:16:31]} 10. Nh4 {[%emt 0:11:07]} Kh7 {[%emt 0:00:51]} 11. exd5 {[%emt 0:09:21]} cxd5 {[%emt 0:00:44]} 12. Bd3 {[%emt 0:07:56]} f5 {[%emt 0:00:30]} 13. Nf3 {[%emt 0:01:13]} Nc6 {[%emt 0:00:18]} 14. Ne2 {[%emt 0:06:06]} e5 {[%emt 0:01:39]} 15. dxe5 {[%emt 0:01:33]} Nfxe5 {[%emt 0:00:30]} 16. Nf4 {[%emt 0:04:41]} Nxd3 {[%emt 0:03:34]} 17. Nxd3 {[%emt 0:02:22]} b6 {[%emt 0:04:32]} 18. Bf4 {[%emt 0:09:33]} g5 {[%emt 0:00:49]} 19. Nfe5 {[%emt 0:03:26]} Ne7 {[%emt 0:02:08]} 20. Bd2 {[%emt 0:01:12]} a5 {[%emt 0:03:37]} 21. Qh5 {[%emt 0:02:49]} Kg8 {[%emt 0:05:51]} 22. h4 {[%emt 0:00:43]} Qd6 {[%emt 0:14:28]} 23. hxg5 {[%emt 0:01:03]} hxg5 {[%emt 0:00:26]} 24. Bxg5 {[%emt 0:00:48]} Ra7 {[%emt 0:02:00]} 25. Bf4 {[%emt 0:02:37]} Qf6 {[%emt 0:02:08]} 26. Re3 {[%emt 0:00:32]} d4 {[%emt 0:01:52]} 27. Rh3 {[%emt 0:01:18]} Rd8 {[%emt 0:01:43]} 28. Re1 {[%emt 0:02:51]} Ba6 {[%emt 0:03:42]} 29. Bg5 {[%emt 0:01:08]} Qe6 {[%emt 0:02:57]} 30. Qh7+ {[%emt 0:00:25]} Kf8 {[%emt 0:00:05]} 31. Bxe7+ {[%emt 0:01:29]} Rxe7 {[%emt 0:02:23]} 32. Ng6+ {[%emt 0:00:11]} Kf7 {[%emt 0:00:10]} 33. Rxe6 {[%emt 0:00:50]} Rxe6 {[%emt 0:00:06]} 34. Nge5+ {[%emt 0:01:02]} Kf8 {[%emt 0:00:27]} 35. Qxf5+ {[%emt 0:00:47]} 1-0

[Event "FRA-chTW Top 12 2019"]
[Site "Vandoeuvre"]
[Date "2019.05.03"]
[Round "3.8"]
[White "Neuhauser, Salome"]
[Black "Saliou, Sarah"]
[Result "*"]
[ECO "B15"]
[WhiteElo "2073"]
[BlackElo "1696"]
[Annotator "NA"]
[PlyCount "26"]
[EventDate "2019.05.02"]
[EventType "team-tourn"]
[EventCountry "FRA"]
[SourceTitle "playchess.com"]
[Source "ChessBase"]
[SourceQuality "1"]
[TimeControl "40/5400+30:1800+30"]

1. e4 {[%emt 0:00:00]} g6 {[%emt 0:00:00]} 2. d4 {[%emt 0:00:00]} Bg7 {[%emt 0:00:00]} 3. Nc3 {[%emt 0:00:00]} c6 {[%emt 0:00:00]} 4. Nf3 {[%emt 0:00:17]} d5 {[%emt 0:00:06]} 5. h3 {[%emt 0:00:25]} f6 {[%emt 0:01:12]} 6. Bd3 {[%emt 0:08:19]} Nh6 {[%emt 0:00:25]} 7. O-O {[%emt 0:00:59]} Nf7 {[%emt 0:00:10]} 8. Re1 {[%emt 0:04:27]} O-O {[%emt 0:00:07]} 9. Bf1 {[%emt 0:02:36]} h6 {[%emt 0:16:31]} 10. Nh4 {[%emt 0:11:07]} Kh7 {[%emt 0:00:51]} 11. exd5 {[%emt 0:09:21]} cxd5 {[%emt 0:00:44]} 12. Bd3 {[%emt 0:07:56]} f5 {[%emt 0:00:30]} 13. Nf3 {[%emt 0:01:13]} Nc6 {[%emt 0:00:18]} *

[Event "FRA-chTW Top 12 2019"]
[Site "Vandoeuvre"]
[Date "2019.05.03"]
[Round "3.8"]
[White "Flear, Christine"]
[Black "Gromas, Hermine"]
[Result "1-0"]
[ECO "A81"]
[WhiteElo "2037"]
[BlackElo "1476"]
[Annotator "NA"]
[PlyCount "66"]
[EventDate "2019.05.02"]
[EventType "team-tourn"]
[EventCountry "FRA"]
[SourceTitle "playchess.com"]
[Source "ChessBase"]
[SourceQuality "1"]
[TimeControl "40/5400+30:1800+30"]

1. d4 {[%emt 0:00:00]} f5 {[%emt 1:30:30]} 2. g3 g6 3. Bg2 Nf6 4. Nh3 Bg7 5. c3 d6 6. Nf4 c6 7. Qb3 Na6 8. Nd2 Nc7 9. Nf3 Nfd5 10. Nd3 h6 11. h4 b5 12. O-O Be6 13. Qc2 O-O 14. Bf4 Bf7 15. Rad1 Qc8 16. Bh3 Qb7 17. Bc1 Rfe8 18. h5 g5 19. Bxf5 Bxh5 20. Nde1 Nf6 21. Bg6 Bxg6 22. Qxg6 Ncd5 23. e4 Nb6 {[%emt 0:00:00]} 24. e5 {[%emt 0:11:34]} Nfd5 {[%emt 0:00:00]} 25. Nh2 {[%emt 0:00:30]} Qc8 {[%emt 0:00:00]} 26. Kg2 {[%emt 0:00:30]} Rf8 {[%emt 0:00:00]} 27. exd6 {[%emt 0:00:30]} Rf6 {[%emt 0:00:00]} 28. Qe4 {[%emt 0:00:30]} exd6 {[%emt 0:00:00]} 29. Nef3 {[%emt 0:00:30]} Qe8 {[%emt 0:00:00]} 30. Qd3 {[%emt 0:00:30]} Qf7 {[%emt 0:00:00]} 31. Ng4 {[%emt 0:00:30]} Re6 {[%emt 0:00:00]} 32. Rh1 {[%emt 0:00:30]} Rf8 {[%emt 0:00:00]} 33. Nxg5 {[%emt 0:00:30]} Qe7 {[%emt 0:00:00]} 1-0

[Event "FRA-chTW Top 12 2019"]
[Site "Vandoeuvre"]
[Date "2019.05.03"]
[Round "3.9"]
[White "Bulmaga, Irina"]
[Black "Atalik, Ekaterina"]
[Result "1/2-1/2"]
[ECO "B19"]
[WhiteElo "2429"]
[BlackElo "2458"]
[Annotator "ChessBase"]
[PlyCount "39"]
[EventDate "2019.05.02"]
[EventType "team-tourn"]
[EventCountry "FRA"]
[SourceTitle "playchess.com"]
[Source "ChessBase"]
[SourceQuality "1"]
[TimeControl "40/5400+30:1800+30"]

1. e4 {[%emt 0:00:00]} c6 {[%emt 0:00:00]} 2. d4 {[%emt 0:00:06]} d5 {[%emt 0:00:02]} 3. Nc3 {[%emt 0:00:46]} dxe4 {[%emt 0:00:17]} 4. Nxe4 {[%emt 0:00:06]} Bf5 {[%emt 0:00:23]} 5. Ng3 {[%emt 0:00:08]} Bg6 {[%emt 0:00:13]} 6. Nf3 {[%emt 0:00:15]} e6 {[%emt 0:01:34]} 7. h4 {[%emt 0:00:54]} h6 {[%emt 0:01:29]} 8. Ne5 {[%emt 0:04:59]} Bh7 {[%emt 0:00:23]} 9. Bd3 {[%emt 0:07:11]} Bxd3 {[%emt 0:01:15]} 10. Qxd3 {[%emt 0:00:09]} Nd7 {[%emt 0:03:04]} 11. f4 {[%emt 0:04:45]} Bb4+ {[%emt 0:03:38]} 12. c3 {[%emt 0:01:40]} Be7 {[%emt 0:03:02]} 13. Bd2 {[%emt 0:07:38]} Ngf6 {[%emt 0:07:50]} 14. O-O-O {[%emt 0:04:02]} O-O {[%emt 0:01:22]} 15. Ne4 {[%emt 0:10:43]} Nxe4 {[%emt 0:03:17]} 16. Qxe4 {[%emt 0:03:30]} Nxe5 {[%emt 0:04:22]} 17. fxe5 {[%emt 0:03:19]} Qd5 {[%emt 0:03:04]} 18. Qxd5 {[%emt 0:06:26]} cxd5 {[%emt 0:02:30]} 19. h5 {[%emt 0:01:44]} b5 {[%emt 0:03:05]} 20. g4 {[%emt 0:03:25]} 1/2-1/2

[Event "FRA-chTW Top 12 2019"]
[Site "Vandoeuvre"]
[Date "2019.05.03"]
[Round "3.10"]
[White "Frisk, Ellinor"]
[Black "Klipper, Noemie"]
[Result "1-0"]
[ECO "A38"]
[WhiteElo "2262"]
[BlackElo "1816"]
[Annotator "NA"]
[PlyCount "100"]
[EventDate "2019.05.02"]
[EventType "team-tourn"]
[EventCountry "FRA"]
[SourceTitle "playchess.com"]
[Source "ChessBase"]
[SourceQuality "1"]
[TimeControl "40/5400+30:1800+30"]

1. Nf3 {[%emt 0:00:00]} c5 {[%emt 0:00:00]} 2. c4 {[%emt 0:00:00]} g6 {[%emt 0:00:00]} 3. g3 {[%emt 0:02:48]} Nc6 {[%emt 0:00:02]} 4. d4 {[%emt 0:00:30]} cxd4 {[%emt 0:00:17]} 5. Nxd4 {[%emt 0:00:04]} Bg7 {[%emt 0:00:22]} 6. Nc2 {[%emt 0:00:46]} Nf6 {[%emt 0:00:24]} 7. Bg2 {[%emt 0:00:08]} O-O {[%emt 0:00:08]} 8. O-O {[%emt 0:00:04]} d6 {[%emt 0:00:16]} 9. Nc3 {[%emt 0:01:26]} Nd7 {[%emt 0:07:18]} 10. Qd2 {[%emt 0:06:27]} Rb8 {[%emt 0:05:07]} 11. b3 {[%emt 0:02:21]} a6 {[%emt 0:03:24]} 12. Bb2 {[%emt 0:00:22]} Na7 {[%emt 0:00:45]} 13. Nd4 {[%emt 0:06:57]} b6 {[%emt 0:03:58]} 14. Rfd1 {[%emt 0:02:59]} Bb7 {[%emt 0:00:53]} 15. Nd5 {[%emt 0:01:15]} Ne5 {[%emt 0:16:39]} 16. Rac1 {[%emt 0:05:36]} b5 {[%emt 0:15:48]} 17. cxb5 {[%emt 0:04:02]} Nxb5 {[%emt 0:00:39]} 18. Rc2 {[%emt 0:05:12]} e6 {[%emt 0:13:40]} 19. Nxb5 {[%emt 0:08:43]} axb5 {[%emt 0:00:53]} 20. Nc7 {[%emt 0:03:10]} Bxg2 {[%emt 0:06:48]} 21. Kxg2 {[%emt 0:00:03]} Nc4 {[%emt 0:04:21]} 22. bxc4 {[%emt 0:01:51]} Qxc7 {[%emt 0:00:42]} 23. Bxg7 {[%emt 0:04:35]} Kxg7 {[%emt 0:00:06]} 24. cxb5 {[%emt 0:00:40]} Qb7+ {[%emt 0:01:39]} 25. Rc6 {[%emt 0:06:55]} Qxb5 {[%emt 0:01:32]} 26. Rxd6 {[%emt 0:00:08]} Qb2 {[%emt 0:10:48]} 27. a4 {[%emt 0:02:17]} Qxd2 {[%emt 0:01:23]} 28. R1xd2 {[%emt 0:00:10]} Rb4 {[%emt 0:00:28]} 29. Ra2 {[%emt 0:01:15]} Ra8 {[%emt 0:02:57]} 30. a5 {[%emt 0:00:12]} Kf8 {[%emt 0:01:51]} 31. Rc6 {[%emt 0:03:12]} Ra7 {[%emt 0:01:34]} 32. a6 {[%emt 0:01:48]} Ke8 {[%emt 0:00:30]} 33. Kf3 {[%emt 0:04:19]} Kd7 {[%emt 0:00:07]} 34. Rc5 {[%emt 0:00:23]} Rb6 {[%emt 0:00:31]} 35. Rca5 {[%emt 0:00:09]} Kc7 {[%emt 0:00:50]} 36. Kf4 {[%emt 0:01:20]} f6 {[%emt 0:00:03]} 37. Ke4 {[%emt 0:01:45]} Kc6 {[%emt 0:00:46]} 38. Kd4 {[%emt 0:02:52]} Rb1 {[%emt 0:00:47]} 39. h4 {[%emt 0:01:40]} Rd1+ {[%emt 0:00:37]} 40. Ke4 {[%emt 0:00:26]} Rb1 {[%emt 0:00:11]} 41. Kf3 {[%emt 0:30:55]} Rb3+ {[%emt 0:30:13]} 42. e3 {[%emt 0:00:11]} Rb6 {[%emt 0:00:40]} 43. g4 {[%emt 0:02:29]} h6 {[%emt 0:00:21]} 44. R2a4 {[%emt 0:01:44]} Rb5 {[%emt 0:00:31]} 45. Ke4 {[%emt 0:03:23]} Rxa5 {[%emt 0:00:37]} 46. Rxa5 {[%emt 0:00:01]} Kb6 {[%emt 0:00:04]} 47. Ra2 {[%emt 0:00:13]} Rxa6 {[%emt 0:01:19]} 48. Rxa6+ {[%emt 0:01:23]} Kxa6 {[%emt 0:00:01]} 49. f4 {[%emt 0:00:14]} f5+ {[%emt 0:01:03]} 50. gxf5 {[%emt 0:00:17]} exf5+ {[%emt 0:00:05]} 1-0

[Event "FRA-chTW Top 12 2019"]
[Site "Vandoeuvre"]
[Date "2019.05.03"]
[Round "3.10"]
[White "Bismuth, Lea"]
[Black "Bensdorp-De Labaca, Marlies"]
[Result "1/2-1/2"]
[ECO "B13"]
[WhiteElo "1956"]
[BlackElo "2229"]
[Annotator "NA"]
[PlyCount "75"]
[EventDate "2019.05.02"]
[EventType "team-tourn"]
[EventCountry "FRA"]
[SourceTitle "playchess.com"]
[Source "ChessBase"]
[SourceQuality "1"]
[TimeControl "40/5400+30:1800+30"]

1. d4 {[%emt 0:00:00]} d5 {[%emt 0:00:00]} 2. Bf4 {[%emt 0:00:00]} Nf6 {[%emt 0:00:00]} 3. Nc3 {[%emt 0:00:29]} c5 {[%emt 0:00:09]} 4. e3 {[%emt 0:00:32]} cxd4 {[%emt 0:00:19]} 5. exd4 {[%emt 0:00:07]} a6 {[%emt 0:00:07]} 6. Nf3 {[%emt 0:00:12]} Nc6 {[%emt 0:00:17]} 7. Ne5 {[%emt 0:00:13]} e6 {[%emt 0:00:15]} 8. Nxc6 {[%emt 0:03:44]} bxc6 {[%emt 0:00:05]} 9. Na4 {[%emt 0:00:09]} Bd6 {[%emt 0:02:10]} 10. Bxd6 {[%emt 0:07:15]} Qxd6 {[%emt 0:00:10]} 11. Be2 {[%emt 0:00:53]} O-O {[%emt 0:00:10]} 12. O-O {[%emt 0:01:15]} e5 {[%emt 0:01:03]} 13. Nb6 {[%emt 0:04:25]} Ra7 {[%emt 0:01:52]} 14. Nxc8 {[%emt 0:04:13]} Rxc8 {[%emt 0:00:05]} 15. dxe5 {[%emt 0:17:02]} Qxe5 {[%emt 0:00:07]} 16. c3 {[%emt 0:00:58]} c5 {[%emt 0:10:12]} 17. Re1 {[%emt 0:00:43]} Qd6 {[%emt 0:02:26]} 18. Bf3 {[%emt 0:01:19]} Rb8 {[%emt 0:01:58]} 19. Qd2 {[%emt 0:08:33]} Rab7 {[%emt 0:01:36]} 20. b3 {[%emt 0:00:47]} Rd7 {[%emt 0:00:46]} 21. Rad1 {[%emt 0:01:11]} h6 {[%emt 0:02:04]} 22. g3 {[%emt 0:12:13]} Qb6 {[%emt 0:04:28]} 23. Qf4 {[%emt 0:01:31]} a5 {[%emt 0:00:45]} 24. Qa4 {[%emt 0:06:40]} Rbd8 {[%emt 0:02:26]} 25. Bg2 {[%emt 0:00:38]} Qc7 {[%emt 0:03:49]} 26. Bh3 {[%emt 0:02:08]} Rd6 {[%emt 0:00:31]} 27. Bg2 {[%emt 0:02:13]} d4 {[%emt 0:01:33]} 28. cxd4 {[%emt 0:00:51]} Rxd4 {[%emt 0:00:26]} 29. Rxd4 {[%emt 0:00:25]} cxd4 {[%emt 0:00:51]} 30. Qc6 {[%emt 0:01:19]} Qxc6 {[%emt 0:09:04]} 31. Bxc6 {[%emt 0:00:03]} Rd6 {[%emt 0:01:56]} 32. Bf3 {[%emt 0:00:15]} Kf8 {[%emt 0:01:11]} 33. Kf1 {[%emt 0:01:20]} Nd7 {[%emt 0:01:02]} 34. Ke2 {[%emt 0:02:22]} Re6+ {[%emt 0:03:26]} 35. Kd2 {[%emt 0:00:11]} Rf6 {[%emt 0:04:02]} 36. Ke2 {[%emt 0:01:56]} Re6+ {[%emt 0:07:11]} 37. Kd2 {[%emt 0:00:38]} Rf6 {[%emt 0:06:51]} 38. Ke2 {[%emt 0:00:07]} 1/2-1/2

[Event "FRA-chTW Top 12 2019"]
[Site "Vandoeuvre"]
[Date "2019.05.03"]
[Round "3.11"]
[White "Verot, Melanie"]
[Black "Marin Benito, Carla"]
[Result "1/2-1/2"]
[ECO "E76"]
[WhiteElo "2069"]
[BlackElo "1978"]
[Annotator "NA"]
[PlyCount "112"]
[EventDate "2019.05.02"]
[EventType "team-tourn"]
[EventCountry "FRA"]
[SourceTitle "playchess.com"]
[Source "ChessBase"]
[SourceQuality "1"]
[TimeControl "40/5400+30:1800+30"]

1. d4 {[%emt 0:00:00]} Nf6 {[%emt 0:00:00]} 2. c4 {[%emt 0:00:00]} g6 {[%emt 0:00:00]} 3. Nc3 {[%emt 0:00:13]} Bg7 {[%emt 0:00:00]} 4. e4 {[%emt 0:00:14]} d6 {[%emt 0:00:13]} 5. f4 {[%emt 0:00:14]} O-O {[%emt 0:00:46]} 6. Nf3 {[%emt 0:00:22]} Nbd7 {[%emt 0:03:44]} 7. e5 {[%emt 0:04:03]} Ne8 {[%emt 0:04:59]} 8. Be3 {[%emt 0:04:48]} e6 {[%emt 0:05:01]} 9. Be2 {[%emt 0:07:52]} Qe7 {[%emt 0:12:25]} 10. O-O {[%emt 0:07:43]} c5 {[%emt 0:03:48]} 11. Nb5 {[%emt 0:07:45]} a6 {[%emt 0:11:50]} 12. exd6 {[%emt 0:04:13]} Nxd6 {[%emt 0:00:33]} 13. Nxd6 {[%emt 0:06:56]} Qxd6 {[%emt 0:00:04]} 14. dxc5 {[%emt 0:01:40]} Qxd1 {[%emt 0:05:32]} 15. Raxd1 {[%emt 0:00:16]} Bxb2 {[%emt 0:00:21]} 16. Rd3 {[%emt 0:01:45]} e5 {[%emt 0:03:09]} 17. fxe5 {[%emt 0:01:30]} Nxe5 {[%emt 0:02:59]} 18. Rb3 {[%emt 0:00:49]} Ng4 {[%emt 0:08:24]} 19. Bf4 {[%emt 0:02:27]} Bg7 {[%emt 0:00:40]} 20. h3 {[%emt 0:01:19]} Nf6 {[%emt 0:00:25]} 21. Bd6 {[%emt 0:05:26]} Re8 {[%emt 0:01:03]} 22. Bd3 {[%emt 0:02:44]} Bf8 {[%emt 0:01:57]} 23. Ng5 {[%emt 0:03:02]} Bg7 {[%emt 0:09:28]} 24. Bc2 {[%emt 0:08:24]} h6 {[%emt 0:01:39]} 25. Nf3 {[%emt 0:01:05]} Re2 {[%emt 0:03:31]} 26. Rf2 {[%emt 0:01:06]} Re6 {[%emt 0:01:13]} 27. Be5 {[%emt 0:08:01]} Nd7 {[%emt 0:02:46]} 28. Bxg7 {[%emt 0:04:21]} Kxg7 {[%emt 0:00:10]} 29. Nd4 {[%emt 0:01:17]} Re1+ {[%emt 0:00:35]} 30. Kh2 {[%emt 0:00:03]} Nxc5 {[%emt 0:01:07]} 31. Rbf3 {[%emt 0:00:07]} Re7 {[%emt 0:01:25]} 32. h4 {[%emt 0:00:49]} Bg4 {[%emt 0:01:12]} 33. Rg3 {[%emt 0:03:08]} Ne4 {[%emt 0:06:03]} 34. Re3 {[%emt 0:03:10]} Rae8 {[%emt 0:02:00]} 35. Rf4 {[%emt 0:01:43]} Nf6 {[%emt 0:00:56]} 36. Rb3 {[%emt 0:00:23]} h5 {[%emt 0:00:35]} 37. Rb6 {[%emt 0:00:33]} Nh7 {[%emt 0:01:39]} 38. c5 {[%emt 0:03:09]} Nf8 {[%emt 0:01:17]} 39. Bb3 {[%emt 0:01:36]} Ne6 {[%emt 0:00:30]} 40. Nxe6+ {[%emt 0:00:21]} Bxe6 {[%emt 0:00:05]} 41. Bxe6 {[%emt 0:30:33]} fxe6 {[%emt 0:30:07]} 42. Rfb4 {[%emt 0:00:09]} Rc8 {[%emt 0:01:22]} 43. Rxb7 {[%emt 0:00:57]} Rxb7 {[%emt 0:05:57]} 44. Rxb7+ {[%emt 0:00:04]} Kf6 {[%emt 0:00:00]} 45. Rb6 {[%emt 0:00:23]} Rxc5 {[%emt 0:00:00]} 46. Rxa6 {[%emt 0:00:06]} Rc3 {[%emt 0:00:00]} 47. Ra8 {[%emt 0:00:59]} Kf5 {[%emt 0:00:00]} 48. Rf8+ {[%emt 0:00:16]} Ke5 {[%emt 0:00:00]} 49. Rg8 {[%emt 0:00:31]} Kf6 {[%emt 0:00:00]} 50. Rf8+ {[%emt 0:00:49]} Ke7 {[%emt 0:00:00]} 51. Rf3 {[%emt 0:00:41]} Rc2 {[%emt 0:00:00]} 52. a3 {[%emt 0:00:28]} Ra2 {[%emt 0:00:00]} 53. Kh3 {[%emt 0:01:44]} Rc2 {[%emt 0:00:00]} 54. g4 {[%emt 0:01:53]} hxg4+ {[%emt 0:00:00]} 55. Kxg4 {[%emt 0:00:03]} Rc5 {[%emt 0:00:00]} 56. Rf4 {[%emt 0:01:01]} Ra5 {[%emt 0:00:00]} 1/2-1/2

[Event "FRA-chTW Top 12 2019"]
[Site "Vandoeuvre"]
[Date "2019.05.03"]
[Round "3.11"]
[White "Afraoui, Anaelle"]
[Black "Steil-Antoni, Fiona"]
[Result "*"]
[ECO "D11"]
[WhiteElo "2068"]
[BlackElo "2156"]
[Annotator "NA"]
[PlyCount "24"]
[EventDate "2019.05.02"]
[EventType "team-tourn"]
[EventCountry "FRA"]
[SourceTitle "playchess.com"]
[Source "ChessBase"]
[SourceQuality "1"]
[TimeControl "40/5400+30:1800+30"]

1. d4 {[%emt 0:00:00]} d5 {[%emt 0:00:00]} 2. Nf3 {[%emt 0:00:00]} Nf6 {[%emt 0:00:01]} 3. c4 {[%emt 0:00:00]} c6 {[%emt 0:00:07]} 4. Nbd2 {[%emt 0:00:05]} Bf5 {[%emt 0:00:32]} 5. Nh4 {[%emt 0:00:12]} Bg6 {[%emt 0:00:09]} 6. Qb3 {[%emt 0:00:08]} Qb6 {[%emt 1:32:11]} 7. Qxb6 {[%emt 0:04:24]} axb6 {[%emt 0:00:06]} 8. Nxg6 {[%emt 0:00:05]} hxg6 {[%emt 0:00:17]} 9. g3 {[%emt 0:01:39]} e6 {[%emt 0:01:08]} 10. Bg2 {[%emt 0:00:32]} Bb4 {[%emt 0:01:22]} 11. cxd5 {[%emt 0:01:23]} exd5 {[%emt 0:00:52]} 12. O-O {[%emt 0:00:22]} Nbd7 {[%emt 0:00:22]} *

[Event "FRA-chTW Top 12 2019"]
[Site "Vandoeuvre"]
[Date "2019.05.03"]
[Round "3.11"]
[White "Gospodaru, Teodora"]
[Black "Haussernot, Cecile"]
[Result "0-1"]
[ECO "D11"]
[WhiteElo "1434"]
[BlackElo "2097"]
[Annotator "NA"]
[PlyCount "84"]
[EventDate "2019.05.02"]
[EventType "team-tourn"]
[EventCountry "FRA"]
[SourceTitle "playchess.com"]
[Source "ChessBase"]
[SourceQuality "1"]
[TimeControl "40/5400+30:1800+30"]

1. d4 {[%emt 0:00:00]} d5 {[%emt 0:00:00]} 2. Nf3 {[%emt 0:00:00]} Nf6 {[%emt 0:00:01]} 3. c4 {[%emt 0:00:00]} c6 {[%emt 0:00:07]} 4. Nbd2 {[%emt 0:00:05]} Bf5 {[%emt 0:00:32]} 5. Nh4 {[%emt 0:00:12]} Bg6 {[%emt 0:00:09]} 6. Qb3 {[%emt 0:00:08]} Qb6 {[%emt 0:02:50]} 7. Qxb6 {[%emt 0:04:24]} axb6 {[%emt 0:00:06]} 8. Nxg6 {[%emt 0:00:05]} hxg6 {[%emt 0:00:17]} 9. g3 {[%emt 0:01:39]} e6 {[%emt 0:01:08]} 10. Bg2 {[%emt 0:00:32]} Bb4 {[%emt 0:01:22]} 11. cxd5 {[%emt 0:01:23]} exd5 {[%emt 0:00:52]} 12. O-O {[%emt 0:00:22]} Nbd7 {[%emt 0:00:22]} 13. a3 {[%emt 0:05:28]} Bd6 {[%emt 0:01:00]} 14. Nf3 {[%emt 0:08:16]} b5 {[%emt 0:01:56]} 15. Bf4 {[%emt 0:03:03]} Bxf4 {[%emt 0:03:09]} 16. gxf4 {[%emt 0:00:13]} Nb6 {[%emt 0:01:57]} 17. b3 {[%emt 0:03:12]} Ne4 {[%emt 0:00:22]} 18. Rfd1 {[%emt 0:03:36]} Ke7 {[%emt 0:01:01]} 19. Ne5 {[%emt 0:03:27]} Ra7 {[%emt 0:05:35]} 20. Nd3 {[%emt 0:06:20]} Rha8 {[%emt 0:03:16]} 21. Bxe4 {[%emt 0:04:43]} dxe4 {[%emt 0:00:05]} 22. Nc5 {[%emt 0:00:04]} f5 {[%emt 0:00:38]} 23. f3 {[%emt 0:07:51]} e3 {[%emt 0:06:30]} 24. a4 {[%emt 0:06:04]} bxa4 {[%emt 0:00:27]} 25. bxa4 {[%emt 0:01:12]} Nd5 {[%emt 0:01:11]} 26. Nd3 {[%emt 0:05:26]} Rxa4 {[%emt 0:00:59]} 27. Rab1 {[%emt 0:00:52]} R8a7 {[%emt 0:01:58]} 28. Rb2 {[%emt 0:05:22]} Rxd4 {[%emt 0:00:26]} 29. Rdb1 {[%emt 0:00:24]} b6 {[%emt 0:02:33]} 30. Ne5 {[%emt 0:00:22]} Rc7 {[%emt 0:00:11]} 31. Nxg6+ {[%emt 0:00:19]} Kf6 {[%emt 0:00:09]} 32. Nh4 {[%emt 0:01:57]} Rxf4 {[%emt 0:01:31]} 33. Ng2 {[%emt 0:00:24]} Rd4 {[%emt 0:00:12]} 34. Rc1 {[%emt 0:00:46]} c5 {[%emt 0:00:39]} 35. Rb3 {[%emt 0:01:34]} c4 {[%emt 0:01:52]} 36. Ra3 {[%emt 0:03:24]} c3 {[%emt 0:00:41]} 37. Ne1 {[%emt 0:00:47]} Rd2 {[%emt 0:01:58]} 38. Kf1 {[%emt 0:00:45]} b5 {[%emt 0:01:20]} 39. Ra6+ {[%emt 0:01:55]} Kg5 {[%emt 0:02:01]} 40. Ra5 {[%emt 0:02:22]} b4 {[%emt 0:06:47]} 41. Nd3 {[%emt 0:31:01]} Rxd3 {[%emt 0:31:07]} 42. exd3 {[%emt 0:00:53]} Nf4 {[%emt 0:00:07]} 0-1